bitfinex/quotes_ETHUSD_20250914
["timestamp","ask_amount","ask_price","bid_price","bid_amount"]
[1757836912196,20.29376359,4648.9,4648.8,1e-08]
[1757836912397,22.15858949,4648.9,4648.8,1e-08]
[1757836912613,22.61758949,4648.9,4648.8,1e-08]
[1757836913042,23.09208949,4648.9,4648.8,1e-08]
[1757836915049,22.61758949,4648.9,4648.8,1e-08]
[1757836915822,22.15858949,4648.9,4648.8,1e-08]
[1757836916062,21.86658949,4648.9,4648.8,1e-08]
[1757836916294,22.61758949,4648.9,4648.8,1e-08]
[1757836917645,22.61658949,4648.9,4648.8,1e-08]
[1757836918852,22.15758949,4648.9,4648.8,1e-08]
[1757836919420,21.86558949,4648.9,4648.8,1e-08]
[1757836919964,15.48226359,4648.9,4648.8,1e-08]
[1757836920194,18.60696359,4648.9,4648.8,0.74490001]
[1757836920494,11.56307481,4648.9,4648.8,1.16770001]
[1757836920883,7.9284628,4648.9,4648.8,0.45400001]
[1757836921067,7.3434628,4648.9,4648.8,0.74490001]
[1757836921391,11.12967076,4648.9,4648.8,1.16770001]
[1757836921603,11.12967076,4648.9,4648.8,0.29090001]
[1757836921754,13.50116783,4648.9,4648.8,1e-08]
[1757836922190,14.45959341,4648.9,4648.8,1e-08]
[1757836924760,13.20089341,4648.9,4648.8,1e-08]
[1757836925162,13.19989341,4648.9,4648.8,0.29090001]
[1757836925357,13.19989341,4648.9,4648.8,1e-08]
[1757836925358,9.90389341,4648.9,4648.8,1e-08]
[1757836925671,14.41849341,4648.9,4648.8,1e-08]
[1757836926074,21.93559341,4648.9,4648.8,1e-08]
[1757836927467,22.40340104,4648.9,4648.8,1e-08]
[1757836930810,22.20319308,4648.9,4648.8,1e-08]
[1757836931104,22.40351695,4648.9,4648.8,1e-08]
[1757836932406,21.90641695,4648.9,4648.8,1e-08]
[1757836936048,23.93814285,4648.9,4648.8,0.29060001]
[1757836936202,23.65413522,4648.9,4648.8,1e-08]
[1757836936405,24.60763522,4648.9,4648.8,1e-08]
[1757836937152,26.68963522,4648.9,4648.8,1e-08]
[1757836938552,26.69008292,4648.9,4648.8,1e-08]
[1757836938885,2.082,4648.4,4648.3,0.001]
[1757836939008,18.82628819,4648.4,4648.3,0.001]
[1757836939331,20.51247683,4648.4,4648.3,0.001]
[1757836939629,23.13015468,4648.4,4648.3,0.001]
[1757836939835,16.21785468,4648.4,4648.3,0.001]
[1757836940008,16.21785468,4648.4,4648.3,0.2916]
[1757836940009,20.37868081,4648.4,4648.3,0.2916]
[1757836940596,21.98657788,4648.4,4648.3,0.001]
[1757836940801,22.74167788,4648.4,4648.3,0.001]
[1757836941034,2.15150928,4647.9,4647.8,0.001]
[1757836941234,10.4079328,4647.9,4647.8,0.001]
[1757836941537,11.16836021,4647.9,4647.8,0.6789]
[1757836943534,11.16836021,4647.9,4647.8,0.8111]
[1757836943535,11.16936021,4647.9,4647.8,0.8111]
[1757836943725,10.70803463,4647.9,4647.8,0.8111]
[1757836944135,10.70803463,4647.9,4647.8,0.6789]
[1757836945435,7.12303463,4647.9,4647.8,0.6789]
[1757836945635,10.70703463,4647.9,4647.8,0.8111]
[1757836946551,10.70703463,4647.9,4647.8,0.6789]
[1757836946722,7.12303463,4647.9,4647.8,0.6789]
[1757836947047,10.70703463,4647.9,4647.8,0.8111]
[1757836947544,10.70703463,4647.9,4647.8,0.6789]
[1757836949349,10.50671076,4647.9,4647.8,0.8111]
[1757836951341,10.50671076,4647.9,4647.8,0.6789]
[1757836952246,10.70701327,4647.9,4647.8,0.6789]
[1757836955679,13.50533917,4647.9,4647.8,0.2125]
[1757836955840,13.94693917,4647.9,4647.8,0.001]
[1757836956352,10.70701327,4647.9,4647.8,0.2125]
[1757836957158,10.70701327,4647.9,4647.8,0.001]
[1757836957556,11.44741327,4647.9,4647.8,0.001]
[1757836957843,13.61310124,4647.9,4647.8,0.001]
[1757836959496,21.09462537,4647.9,4647.8,0.001]
[1757836959647,21.18073891,4647.9,4647.8,0.001]
[1757836959844,24.03203372,4647.9,4647.8,0.001]
[1757836960081,24.03203372,4647.9,4647.3,0.001]
[1757836960082,0.792,4647.4,4647.3,0.001]
[1757836960281,21.92546117,4647.4,4647.3,0.001]
[1757836960592,24.34704629,4647.4,4647.3,0.001]
[1757836960768,24.84324629,4647.4,4647.3,0.001]
[1757836961382,2.15262081,4645.5,4645.4,0.4962]
[1757836961576,5.73762081,4645.5,4645.4,0.4962]
[1757836961764,3.585,4645.5,4645.4,0.7093]
[1757836961955,3.60642352,4645.5,4645.4,0.7093]
[1757836962152,3.60642352,4645.5,4645.4,0.8425]
[1757836962346,5.75904433,4645.5,4645.4,0.7093]
[1757836962551,3.585,4645.5,4645.4,0.7093]
[1757836962753,3.60642352,4645.5,4645.4,0.7093]
[1757836964488,3.585,4645.5,4645.4,0.7093]
[1757836968083,3.585,4645.5,4645.3,0.001]
[1757836968084,0.1072,4645.4,4645.3,0.001]
[1757836968395,2.25986715,4645.4,4645.3,0.001]
[1757836968960,3.01526715,4645.4,4645.3,0.001]
[1757836969790,0.12862352,4645.4,4645.3,0.001]
[1757836970974,2.28129067,4645.4,4645.3,0.001]
[1757836971568,0.12862352,4645.4,4645.3,0.001]
[1757836972000,2.28129067,4645.4,4645.3,0.001]
[1757836973108,2.73269067,4645.4,4645.3,0.001]
[1757836973312,2.58529067,4645.4,4645.3,0.001]
[1757836973608,0.88402352,4645.4,4645.3,0.001]
[1757836973772,3.03669067,4645.4,4645.3,0.001]
[1757836975295,0.88402352,4645.4,4645.3,0.001]
[1757836975608,3.03669067,4645.4,4645.3,0.001]
[1757836975805,0.12862352,4645.4,4645.3,0.001]
[1757836976610,0.12862352,4645.4,4645.3,0.2141]
[1757836976799,3.6922,4645.4,4645.3,0.6992]
[1757836977741,3.6922,4645.4,4645.3,0.001]
[1757836978016,3.6922,4645.4,4645.3,0.2141]
[1757836978516,0.1072,4645.4,4645.3,0.2141]
[1757836978720,3.6922,4645.4,4645.3,0.2141]
[1757836979037,3.6922,4645.4,4645.3,0.6992]
[1757836980341,0.1072,4645.4,4645.3,0.6992]
[1757836980549,3.585,4645.4,4645.3,0.9843955]
[1757836980716,3.585,4645.4,4645.3,1.1175955]
[1757836980920,3.585,4645.4,4645.3,0.9843955]
[1757836981839,1.651,4645.6,4645.5,2.15262081]
[1757836982040,5.236,4645.6,4645.5,2.36572081]
[1757836982342,1.651,4645.6,4645.5,2.98402081]
[1757836982547,1.651,4645.6,4645.5,3.00554701]
[1757836982743,5.236,4645.6,4645.5,3.53219261]
[1757836982913,1.651,4645.6,4645.5,3.53219261]
[1757836983113,5.236,4645.6,4645.5,3.51066641]
[1757836983309,1.652,4646.3,4645.9,2.15242317]
[1757836983510,3.585,4646.2,4646.0,0.4851]
[1757836983831,1.652,4646.3,4646.2,0.2131]
[1757836984038,1.652,4646.3,4646.2,2.8504965]
[1757836984217,4.87,4646.3,4646.2,3.28207625]
[1757836984538,4.87,4646.3,4646.2,0.99657975]
[1757836984737,4.87,4646.3,4646.2,0.6982]
[1757836985142,1.652,4646.3,4646.2,0.6982]
[1757836985314,5.237,4646.3,4646.2,0.6982]
[1757836986147,5.237,4646.3,4646.2,0.2131]
[1757836986448,5.237,4646.3,4646.2,0.6982]
[1757836988150,5.237,4646.3,4646.2,2.8504965]
[1757836988335,5.237,4646.3,4646.2,0.6982]
[1757836989851,5.237,4646.3,4646.2,2.8504965]
[1757836990149,5.237,4646.3,4646.2,3.35078734]
[1757836991754,1.652,4646.3,4646.2,3.35078734]
[1757836991917,5.236,4646.3,4646.2,3.35078734]
[1757836992815,1.652,4646.3,4646.2,3.35078734]
[1757836993047,5.236,4646.3,4646.2,3.35078734]
[1757836993724,1.652,4646.3,4646.2,3.35078734]
[1757836993919,3.584,4646.3,4646.2,4.27598734]
[1757836994144,3.584,4646.3,4646.2,4.38318734]
[1757836994818,0.002,4646.8,4646.7,2.1520649]
[1757836995158,3.586,4646.8,4646.7,2.36727139]
[1757836995367,0.002,4646.8,4646.7,3.06547139]
[1757836995673,3.586,4646.8,4646.7,3.06547139]
[1757836996365,3.586,4646.8,4646.7,2.58037139]
[1757836996947,0.002,4646.8,4646.7,2.58037139]
[1757836997169,3.586,4646.8,4646.7,2.58037139]
[1757836997946,4.0292,4646.8,4646.7,0.21520649]
[1757836998147,4.0292,4646.8,4646.5,0.1072]
[1757836998148,4.3436,4646.8,4646.5,0.1072]
[1757836998352,0.9309,4646.7,4646.1,2.15234112]
[1757836998539,0.9309,4646.7,4645.7,0.4913]
[1757836998540,0.3144,4646.2,4646.0,0.1072]
[1757836998742,3.584,4646.1,4644.7,0.1332]
[1757836998962,3.584,4646.1,4645.7,0.1072]
[1757836998963,0.4432,4646.0,4645.7,0.1072]
[1757836999144,0.3144,4645.8,4645.7,0.1072]
[1757836999462,3.8984,4645.8,4645.7,0.1072]
[1757836999776,4.8293,4645.8,4645.7,0.1072]
[1757837000274,4.8293,4645.8,4645.3,0.1082]
[1757837000577,0.4877,4645.7,4645.3,0.1082]
[1757837000740,0.3144,4645.4,4645.3,0.1082]
[1757837000939,3.8984,4645.4,4645.3,0.1082]
[1757837001136,4.3416,4645.4,4645.3,2.26091349]
[1757837001371,4.3416,4645.4,4645.3,0.1082]
[1757837001677,4.8293,4645.4,4645.3,0.001]
[1757837002670,4.9365,4645.4,4645.3,0.001]
[1757837004392,7.08916715,4645.4,4645.3,0.001]
[1757837006958,3.6912,4645.4,4645.3,0.001]
[1757837007193,4.1344,4645.4,4645.3,0.001]
[1757837007781,4.4488,4645.4,4645.3,0.001]
[1757837007975,0.1072,4645.4,4645.3,0.001]
[1757837008290,3.584,4645.4,4645.3,0.2141]
[1757837008468,3.584,4645.4,4645.3,0.001]
[1757837009585,4.0272,4645.4,4645.3,0.001]
[1757837009805,4.3416,4645.4,4645.3,0.001]
[1757837009958,3.584,4645.4,4645.3,0.001]
[1757837010408,2.70293608,4645.7,4645.3,0.001]
[1757837010633,3.584,4645.6,4645.3,0.001]
[1757837010986,0.4432,4645.5,4645.3,0.001]
[1757837011297,3.584,4645.4,4645.3,0.001]
[1757837013891,4.3416,4645.4,4645.3,0.001]
[1757837014708,3.584,4645.4,4645.3,0.2141]
[1757837014888,0.1072,4645.7,4645.3,0.2141]
[1757837015089,3.584,4645.6,4645.3,0.7054]
[1757837015419,0.4432,4645.5,4645.3,0.001]
[1757837015583,0.3144,4645.4,4645.3,0.001]
[1757837015788,0.7576,4645.4,4645.3,0.001]
[1757837017120,3.584,4645.6,4645.3,0.001]
[1757837017524,4.0272,4645.6,4645.3,0.001]
[1757837017827,3.584,4645.5,4645.3,0.001]
[1757837018028,4.0272,4645.5,4645.3,0.001]
[1757837018197,3.584,4645.5,4645.3,0.001]
[1757837018398,0.4432,4645.4,4645.3,0.001]
[1757837021226,4.0272,4645.4,4645.3,0.001]
[1757837022612,3.584,4645.4,4645.3,2.15371349]
[1757837022816,0.1072,4645.7,4645.4,2.15262916]
[1757837022999,3.584,4645.6,4645.5,0.0215262]
[1757837023326,3.584,4645.6,4645.3,0.001]
[1757837023834,3.584,4645.5,4645.4,0.4913]
[1757837024146,3.584,4645.5,4645.4,2.85706715]
[1757837024338,3.584,4645.5,4645.4,2.36576715]
[1757837024640,3.584,4645.5,4645.4,2.15266715]
[1757837025547,4.0272,4645.5,4645.4,2.15266715]
[1757837026250,3.584,4645.5,4645.4,2.15266715]
[1757837026547,3.584,4645.5,4645.4,3.29212911]
[1757837027337,3.584,4645.5,4645.4,2.59412911]
[1757837028262,3.584,4645.5,4645.4,2.80722911]
[1757837028422,3.584,4645.5,4645.4,2.59412911]
[1757837028622,4.3234,4645.5,4645.4,2.15266715]
[1757837028950,3.584,4645.5,4645.4,2.85066715]
[1757837030626,1.652,4646.2,4645.5,0.792]
[1757837030829,3.584,4646.1,4645.8,2.25967476]
[1757837031252,4.0153,4646.1,4646.0,2.15238915]
[1757837031456,4.0153,4646.1,4645.8,0.1072]
[1757837031754,4.3234,4646.1,4645.8,2.25968021]
[1757837032636,3.584,4646.0,4645.8,2.25968021]
[1757837032947,4.0153,4646.0,4645.8,2.25968021]
[1757837033637,0.4313,4646.0,4645.9,2.15243548]
[1757837033859,3.584,4646.0,4645.8,2.25967841]
[1757837034069,1.652,4646.2,4645.9,2.85043548]
[1757837034365,1.652,4646.2,4646.1,0.1072]
[1757837034366,5.236,4646.2,4646.1,0.1072]
[1757837034674,5.236,4646.2,4646.1,2.25954282]
[1757837034845,5.236,4646.2,4646.1,2.95754282]
[1757837038661,5.236,4646.2,4646.1,2.25954282]
[1757837038854,5.236,4646.2,4646.1,2.80253743]
[1757837039034,5.236,4646.2,4646.1,3.01563743]
[1757837039731,5.236,4646.2,4646.1,3.48983743]
[1757837040264,3.584,4646.2,4646.1,3.48983743]
[1757837040682,3.584,4646.2,4646.1,4.28183743]
[1757837042354,3.584,4646.2,4646.1,3.80763743]
[1757837042554,3.584,4646.2,4646.1,4.30336085]
[1757837042779,3.584,4646.2,4646.1,4.28183743]
[1757837043155,0.002,4646.8,4646.7,2.1520649]
[1757837043368,3.585,4646.8,4646.7,2.1520649]
[1757837043683,4.3396,4646.8,4646.6,2.15210372]
[1757837043897,0.3092,4646.8,4646.7,2.1520649]
[1757837044095,0.3092,4646.8,4646.5,0.1072]
[1757837044096,3.8922,4646.8,4646.6,2.15210913]
[1757837044389,0.4474,4646.7,4646.6,2.15210913]
[1757837044765,0.7546,4646.7,4646.6,2.15210913]
[1757837044963,0.002,4646.8,4646.7,2.9440649]
[1757837045164,0.002,4646.8,4646.7,3.7407983]
[1757837045368,0.002,4646.8,4646.7,6.9811983]
[1757837046083,0.002,4646.8,4646.7,6.8717649]
[1757837047285,0.002,4646.8,4646.7,6.7385649]
[1757837047574,0.002,4646.8,4646.7,8.04337127]
[1757837048911,0.002,4646.8,4646.7,11.62637127]
[1757837051511,0.002,4646.8,4646.7,11.75957127]
[1757837051888,0.002,4646.8,4646.7,11.62637127]
[1757837052201,0.002,4646.8,4646.7,8.04337127]
[1757837052386,0.002,4646.8,4646.7,11.62637127]
[1757837052590,0.002,4646.8,4646.7,7.56917127]
[1757837052930,0.002,4646.8,4646.7,10.93807127]
[1757837053088,0.002,4646.8,4646.7,7.35607127]
[1757837053288,0.002,4646.8,4646.7,10.93807127]
[1757837053792,0.002,4646.8,4646.7,11.15117127]
[1757837053999,0.002,4646.8,4646.7,11.62537127]
[1757837055118,0.002,4646.8,4646.7,11.75857127]
[1757837055433,0.002,4646.8,4646.7,11.62537127]
[1757837055609,0.002,4646.8,4646.7,12.07277127]
[1757837056310,0.002,4646.8,4646.7,12.20597127]
[1757837056730,0.002,4646.8,4646.7,42.45641247]
[1757837057028,0.002,4647.3,4647.2,2.94383336]
[1757837057190,0.002,4647.3,4647.2,10.03540729]
[1757837057518,0.002,4647.3,4647.2,10.84010729]
[1757837058216,0.002,4647.3,4647.2,11.48557465]
[1757837060337,0.002,4647.3,4647.2,11.00117465]
[1757837060554,0.2902,4647.3,4647.2,7.20607465]
[1757837060702,0.7554,4647.3,4647.2,10.14260729]
[1757837061103,0.4672,4647.3,4647.2,10.14260729]
[1757837061539,0.002,4647.3,4647.2,10.14260729]
[1757837062840,0.002,4647.3,4647.2,40.73290729]
[1757837063030,0.002,4647.3,4647.2,40.84010729]
[1757837065446,0.002,4647.3,4647.2,40.83619954]
[1757837066120,0.002,4647.3,4647.2,40.35179954]
[1757837066873,0.002,4647.3,4647.2,40.81699954]
[1757837067164,0.002,4647.3,4647.2,40.60389954]
[1757837067754,0.002,4647.3,4647.2,10.60389954]
[1757837069063,0.002,4647.3,4647.2,10.60289954]
[1757837069362,0.2902,4647.3,4647.2,10.60289954]
[1757837069565,1.212,4647.3,4647.2,5.76469954]
[1757837069763,1.212,4647.3,4647.2,5.83612561]
[1757837071341,0.7554,4647.3,4647.2,6.62812561]
[1757837071749,0.4672,4647.3,4647.2,6.62812561]
[1757837072067,0.002,4647.3,4647.2,6.84122561]
[1757837072268,0.002,4647.3,4647.2,7.78897877]
[1757837076042,0.002,4647.3,4647.2,37.78897877]
[1757837076241,0.002,4647.3,4647.2,10.78897877]
[1757837076572,0.002,4647.3,4647.2,10.57587877]
[1757837076871,0.7554,4647.3,4647.2,6.99487877]
[1757837077083,0.7554,4647.3,4647.2,10.57587877]
[1757837077377,1.212,4647.3,4647.2,10.57587877]
[1757837077545,0.002,4647.3,4647.2,10.57587877]
[1757837078443,0.002,4647.3,4647.2,11.27337877]
[1757837080289,0.002,4647.3,4647.2,11.73857877]
[1757837080902,0.002,4647.3,4647.2,41.73857877]
[1757837085106,0.002,4647.3,4647.2,41.25417877]
[1757837085266,0.002,4647.3,4647.2,41.73857877]
[1757837086479,0.002,4647.3,4647.2,41.25417877]
[1757837087809,0.464,4647.3,4647.2,41.04107877]
[1757837088665,0.002,4647.3,4647.2,41.04107877]
[1757837089077,0.002,4647.3,4647.2,41.25417877]
[1757837089282,0.9179,4648.3,4648.2,2.15137042]
[1757837089496,0.9179,4648.3,4648.2,6.63057042]
[1757837089497,0.4559,4648.3,4648.2,6.63057042]
[1757837089683,0.7527,4648.3,4648.2,7.31698336]
[1757837090003,1.2147,4648.3,4648.2,7.31698336]
[1757837090302,0.7608,4648.3,4648.2,7.31698336]
[1757837092794,0.002,4648.3,4648.2,7.31698336]
[1757837093212,0.463,4648.3,4648.2,7.31698336]
[1757837093616,0.7499,4648.3,4648.2,7.31698336]
[1757837094622,1.2245,4648.3,4648.2,7.31698336]
[1757837101253,0.7499,4648.3,4648.2,7.31698336]
[1757837103068,0.2889,4648.3,4648.2,7.31698336]
[1757837103248,0.7499,4648.3,4648.2,7.31698336]
[1757837104068,0.002,4648.3,4648.2,7.31698336]
[1757837106235,0.2889,4648.3,4648.2,7.31698336]
[1757837106564,1.2245,4648.3,4648.2,3.73698336]
[1757837106766,1.2245,4648.3,4648.2,6.63057042]
[1757837114384,1.2245,4648.3,4648.2,3.05057042]
[1757837114581,1.2245,4648.3,4648.2,6.62957042]
[1757837115549,1.2245,4648.3,4648.2,2.25857042]
[1757837116700,0.002,4648.3,4648.2,2.28008412]
[1757837116872,0.002,4648.3,4648.2,3.55196372]
[1757837117285,0.002,4648.3,4648.2,3.30152252]
[1757837117483,0.002,4648.3,4648.2,4.11503622]
[1757837117687,0.002,4648.3,4648.2,4.09352252]
[1757837118413,0.002,4648.3,4648.2,3.88042252]
[1757837119904,1.224,4648.3,4648.2,5.83757042]
[1757837120606,1.224,4648.3,4648.2,2.25857042]
[1757837126131,0.7427,4648.3,4648.2,2.25857042]
[1757837126735,0.002,4648.3,4648.2,2.25857042]
[1757837126942,0.002,4648.3,4648.2,7.31117042]
[1757837127102,0.002,4648.3,4648.2,8.25743339]
[1757837128835,0.002,4648.3,4648.2,7.78893339]
[1757837129039,0.002,4648.3,4648.2,7.57583339]
[1757837131573,0.002,4648.3,4648.2,7.78893339]
[1757837131867,0.002,4648.3,4648.2,8.23973339]
[1757837132082,1.2185,4648.3,4647.8,0.08605325]
[1757837132245,1.2185,4648.3,4646.7,3.23907977]
[1757837132246,0.02142352,4648.2,4647.3,0.001]
[1757837132445,1.2185,4648.3,4647.8,2.15153098]
[1757837132761,0.3025,4647.9,4647.7,1.195]
[1757837132961,0.4559,4647.8,4647.7,3.34660186]
[1757837133155,1.2165,4647.8,4647.7,3.34660186]
[1757837133762,1.2165,4647.8,4647.7,2.15160186]
[1757837133973,1.2165,4647.8,4647.7,5.73560186]
[1757837135458,1.2165,4647.8,4647.7,2.15160186]
[1757837135667,1.2165,4647.8,4647.7,5.73560186]
[1757837138674,1.2165,4647.8,4647.7,3.583]
[1757837138873,1.2165,4647.8,4647.6,3.583]
[1757837139044,0.3025,4647.8,4647.6,3.583]
[1757837139381,0.914,4647.7,4647.3,0.001]
[1757837139681,0.12165,4647.6,4647.3,0.001]
[1757837139844,0.3025,4647.4,4647.3,0.001]
[1757837140235,1.2165,4647.4,4647.3,0.001]
[1757837142248,3.36824075,4647.4,4647.3,0.001]
[1757837142440,3.38966427,4647.4,4647.3,0.001]
[1757837142652,3.95451726,4647.4,4647.3,0.001]
[1757837145143,4.37529108,4647.4,4647.3,0.001]
[1757837145343,7.96329108,4647.4,4647.3,0.001]
[1757837145543,7.94186756,4647.4,4647.3,0.001]
[1757837147058,10.94186756,4647.4,4647.3,0.001]
[1757837147855,11.73386756,4647.4,4647.3,0.001]
[1757837148061,11.85339492,4647.4,4647.3,0.001]
[1757837149758,12.0523854,4647.4,4647.3,0.001]
[1757837150308,11.85339492,4647.4,4647.3,0.001]
[1757837152691,18.87339492,4647.4,4647.3,0.001]
[1757837153697,18.95951727,4647.4,4647.3,0.001]
[1757837153971,18.95921356,4647.4,4647.3,0.001]
[1757837155194,18.83998991,4647.4,4647.3,0.001]
[1757837157296,18.95916491,4647.4,4647.3,0.001]
[1757837157991,18.83998991,4647.4,4647.3,0.001]
[1757837158305,18.95917842,4647.4,4647.3,0.001]
[1757837160274,10.24348991,4647.4,4647.3,0.001]
[1757837160472,14.03856756,4647.4,4647.3,0.001]
[1757837160673,14.98226756,4647.4,4647.3,0.001]
[1757837160873,15.06837767,4647.4,4647.3,0.001]
[1757837161269,18.06837767,4647.4,4647.3,0.001]
[1757837161692,20.86654732,4647.4,4647.3,0.001]
[1757837161892,21.65854732,4647.4,4647.3,0.001]
[1757837163205,18.86037767,4647.4,4647.3,0.001]
[1757837164126,19.17853632,4647.4,4647.3,0.001]
[1757837166328,19.64221961,4647.4,4647.3,0.001]
[1757837166725,17.91593632,4647.4,4647.3,0.001]
[1757837167242,18.70793632,4647.4,4647.3,0.001]
[1757837167404,19.16682945,4647.4,4647.3,0.001]
[1757837167609,19.64242945,4647.4,4647.3,0.001]
[1757837168495,19.64268609,4647.4,4647.3,0.001]
[1757837171517,20.93268609,4647.4,4647.3,0.001]
[1757837171830,19.64371533,4647.4,4647.3,0.001]
[1757837174340,19.16811533,4647.4,4647.3,0.001]
[1757837175347,19.64371533,4647.4,4647.3,0.001]
[1757837176137,19.64511105,4647.4,4647.3,0.001]
[1757837176438,19.16951105,4647.4,4647.3,0.001]
[1757837177610,19.65651105,4647.4,4647.3,0.001]
[1757837179464,20.23219292,4647.4,4647.3,0.001]
[1757837180045,19.65651105,4647.4,4647.3,0.001]
[1757837180277,20.23257644,4647.4,4647.3,0.001]
[1757837181276,20.11288098,4647.4,4647.3,0.001]
[1757837181446,20.23297503,4647.4,4647.3,0.001]
[1757837182765,15.68687503,4647.4,4647.3,0.001]
[1757837182954,21.20077929,4647.4,4647.3,0.001]
[1757837184387,21.96647929,4647.4,4647.3,0.001]
[1757837188417,17.61060964,4647.4,4647.3,0.8018]
[1757837188586,16.95964654,4647.4,4647.3,0.8018]
[1757837188976,16.49910105,4647.4,4647.3,0.8018]
[1757837190207,12.91210105,4647.4,4647.3,0.8018]
[1757837190408,16.49910105,4647.4,4647.3,0.8018]
[1757837190608,16.17951457,4647.4,4647.3,0.8018]
[1757837190787,16.17951457,4647.4,4647.3,0.3082]
[1757837190788,16.49957558,4647.4,4647.3,0.3082]
[1757837195297,16.49957558,4647.4,4647.3,0.8018]
[1757837197806,16.29953745,4647.4,4647.3,0.8018]
[1757837198414,16.29943284,4647.4,4647.3,0.8018]
[1757837200321,14.14769209,4647.4,4647.3,0.8018]
[1757837200522,4.00777382,4647.4,4647.3,0.8018]
[1757837200848,0.42077382,4647.4,4647.3,1.0422]
[1757837201045,3.584,4647.4,4647.3,1.0422]
[1757837201559,3.6912,4647.4,4647.3,1.0422]
[1757837202231,3.6912,4647.4,4647.3,0.8018]
[1757837202414,3.6912,4647.4,4647.3,0.3082]
[1757837202640,3.6912,4647.4,4647.3,0.8018]
[1757837202846,3.71262352,4647.4,4647.3,0.8018]
[1757837203045,3.6912,4647.4,4647.3,0.8018]
[1757837203450,3.6912,4647.4,4647.3,1.0422]
[1757837203617,0.1072,4647.4,4647.3,1.0422]
[1757837203818,3.6912,4647.4,4647.3,1.36170788]
[1757837204045,0.1072,4647.4,4647.3,3.19398705]
[1757837204564,3.6912,4647.8,4647.5,2.15169106]
[1757837204845,0.1072,4647.8,4647.7,0.3072]
[1757837205037,0.1072,4647.8,4647.7,0.8008]
[1757837205234,0.1072,4647.8,4647.7,1.0412]
[1757837209332,0.1072,4648.1,4647.7,1.0412]
[1757837209527,0.1072,4648.1,4647.8,0.4625]
[1757837210048,0.2901,4647.9,4647.3,0.001]
[1757837210251,3.71262352,4647.8,4647.3,0.001]
[1757837210852,0.4396,4647.7,4647.3,0.001]
[1757837211254,0.4396,4647.6,4647.3,0.001]
[1757837211630,0.4396,4647.5,4647.3,0.001]
[1757837212337,0.02142352,4647.7,4647.3,0.001]
[1757837212538,0.7297,4647.4,4647.3,0.001]
[1757837212765,0.75112352,4647.4,4647.3,0.001]
[1757837213059,3.40006427,4647.4,4647.3,0.001]
[1757837213263,1.24832352,4647.4,4647.3,0.001]
[1757837213686,0.75112352,4647.4,4647.3,0.001]
[1757837216088,0.7297,4647.4,4647.3,0.001]
[1757837218343,0.4396,4647.4,4647.3,0.001]
[1757837218573,0.02142352,4647.5,4647.3,0.001]
[1757837218770,0.7572,4647.4,4647.3,0.001]
[1757837219583,2.90894075,4647.4,4647.3,0.001]
[1757837219889,3.38064075,4647.4,4647.3,0.001]
[1757837220042,1.2289,4647.4,4647.3,0.001]
[1757837220789,3.38064075,4647.4,4647.3,0.001]
[1757837220943,6.96264075,4647.4,4647.3,0.001]
[1757837222543,4.8109,4647.4,4647.3,0.001]
[1757837222742,6.49094075,4647.4,4647.3,0.001]
[1757837223474,4.3392,4647.4,4647.3,0.001]
[1757837223675,4.36062352,4647.4,4647.3,0.001]
[1757837225448,3.582,4647.4,4647.3,0.2916]
[1757837226197,3.582,4647.4,4647.3,0.7753]
[1757837227060,3.582,4647.4,4647.3,3.16748705]
[1757837227263,3.582,4647.4,4647.3,3.69952296]
[1757837227450,3.582,4647.6,4647.3,1.54773591]
[1757837227651,3.582,4647.7,4647.5,2.15169445]
[1757837227852,3.582,4647.7,4647.6,0.2906]
[1757837228065,3.582,4647.7,4647.6,0.7743]
[1757837228267,3.582,4647.7,4647.6,3.16634816]
[1757837228461,1.651,4648.0,4647.6,3.24268298]
[1757837228683,3.582,4647.9,4647.8,2.15155557]
[1757837228858,3.6892,4648.1,4647.8,0.7743]
[1757837229058,3.6892,4648.1,4647.9,0.4837]
[1757837229261,3.6892,4648.1,4648.0,0.7743]
[1757837229602,0.002,4648.2,4648.1,2.1514167]
[1757837229755,0.002,4648.2,4648.1,3.38324337]
[1757837229957,0.002,4648.2,4648.1,0.7743]
[1757837230277,0.002,4648.2,4647.3,0.2414]
[1757837230278,0.1072,4648.1,4647.3,0.5919]
[1757837230468,0.12862352,4648.1,4647.5,2.15165373]
[1757837231075,0.12862352,4648.1,4647.6,2.15163834]
[1757837231276,0.12862352,4648.1,4647.9,2.15149325]
[1757837231277,0.1072,4648.1,4647.9,2.15149325]
[1757837231592,0.12862352,4648.1,4647.7,2.63526968]
[1757837231790,0.1072,4648.1,4648.0,0.2906]
[1757837232096,3.584,4648.2,4648.0,0.7743]
[1757837232461,3.584,4648.2,4648.0,0.2906]
[1757837233755,3.584,4648.2,4648.0,2.44205424]
[1757837233988,3.584,4648.2,4648.0,2.92575424]
[1757837234179,3.584,4648.2,4648.0,0.2906]
[1757837235001,3.584,4648.2,4648.0,2.44205734]
[1757837235171,3.584,4648.2,4648.0,0.2906]
[1757837235373,3.584,4648.2,4648.1,0.4837]
[1757837235584,0.002,4648.2,4648.1,2.9257167]
[1757837235767,0.002,4648.2,4648.1,3.2733167]
[1757837237106,0.002,4648.2,4648.1,3.29483086]
[1757837237418,0.002,4648.2,4648.1,3.2733167]
[1757837237617,0.002,4648.2,4648.1,4.17409789]
[1757837238417,0.002,4648.2,4648.1,3.93369789]
[1757837238725,0.002,4648.2,4648.1,4.17409789]
[1757837240518,0.002,4648.2,4648.1,3.93369789]